bitfinex-derivatives/quotes_ETHF0:USTF0_20250918
["timestamp","ask_amount","ask_price","bid_price","bid_amount"]
[1758196995395,0.219,4576.0,4575.9,0.7068]
[1758196995599,0.3975,4576.0,4575.9,0.7068]
[1758196996398,3.3863,4576.5,4576.4,0.7068]
[1758196996598,3.6053,4576.5,4576.4,0.7068]
[1758196996798,3.7838,4576.5,4576.4,0.7068]
[1758196997396,3.5648,4576.5,4576.4,0.7068]
[1758196997703,3.7838,4576.5,4576.4,0.7068]
[1758196998302,3.5648,4576.5,4576.4,0.7068]
[1758196998496,3.7838,4576.5,4576.4,0.7068]
[1758196999604,3.8954,4576.5,4576.4,0.2964]
[1758197000902,3.8954,4576.5,4576.1,0.2964]
[1758197001103,0.357,4576.1,4576.0,0.626]
[1758197001301,0.576,4576.1,4576.0,0.626]
[1758197001604,0.576,4576.1,4576.0,0.8295]
[1758197001796,0.6876,4576.1,4576.0,0.8295]
[1758197002000,0.6876,4576.1,4576.0,0.626]
[1758197002404,0.6876,4576.1,4576.0,0.4191]
[1758197002899,0.6876,4576.1,4576.0,0.2964]
[1758197003607,0.576,4576.1,4575.1,0.0218]
[1758197003907,0.357,4575.6,4575.5,0.5274]
[1758197004203,0.4686,4575.6,4575.5,0.3239]
[1758197004396,0.4686,4575.6,4575.5,0.2964]
[1758197005408,0.4686,4575.6,4575.5,0.4191]
[1758197005607,0.4686,4575.6,4575.5,0.626]
[1758197007402,0.357,4575.6,4575.5,0.626]
[1758197008104,0.4686,4575.6,4575.5,0.4191]
[1758197008500,0.4686,4575.6,4575.5,0.2964]
[1758197009204,0.4686,4575.6,4575.5,0.4191]
[1758197011513,0.4686,4575.6,4575.5,0.626]
[1758197011706,0.6886,4575.6,4575.5,0.626]
[1758197012012,0.6886,4575.6,4575.5,0.4191]
[1758197012204,0.6886,4575.6,4575.5,0.626]
[1758197013312,0.577,4575.6,4575.5,0.626]
[1758197013507,0.577,4575.6,4575.5,0.8295]
[1758197015210,0.357,4575.6,4575.5,0.8295]
[1758197015406,0.577,4575.6,4575.5,0.8295]
[1758197016508,3.2078,4575.9,4575.5,0.8295]
[1758197016509,3.2078,4575.9,4575.6,0.3009]
[1758197016709,3.2078,4575.9,4575.5,0.5331]
[1758197016710,3.2078,4575.9,4575.8,0.7181]
[1758197017010,3.4278,4575.9,4575.8,0.7181]
[1758197017212,3.6055,4575.9,4575.8,0.7181]
[1758197017413,4.3343586,4575.9,4575.8,0.7181]
[1758197020313,4.4453586,4575.9,4575.8,0.3009]
[1758197020613,4.4453586,4575.9,4575.8,0.5063]
[1758197020911,4.3343586,4575.9,4575.8,0.5063]
[1758197023812,4.4453586,4575.9,4575.8,0.5063]
[1758197024514,4.3333586,4575.9,4575.8,0.5063]
[1758197026005,3.7589586,4575.9,4575.8,0.7181]
[1758197026317,0.7953,4576.1,4576.0,0.8447]
[1758197026518,1.0153,4576.1,4576.0,0.8447]
[1758197027316,1.0153,4576.1,4576.0,1.06322999]
[1758197027715,1.0153,4576.1,4576.0,0.8447]
[1758197028018,0.7953,4576.1,4576.0,0.8447]
[1758197028219,1.0153,4576.1,4576.0,0.8447]
[1758197029917,1.193,4576.1,4576.0,0.8447]
[1758197030317,1.3707,4576.1,4576.0,0.8447]
[1758197030521,1.4817,4576.1,4576.0,0.8447]
[1758197030717,1.3707,4576.1,4576.0,0.8447]
[1758197036826,0.5754,4576.1,4576.0,0.8447]
[1758197037121,0.3554,4576.1,4576.0,0.8447]
[1758197037322,0.6091,4576.2,4576.1,0.6937]
[1758197045531,0.9657,4576.2,4576.1,0.6937]
[1758197048642,1.0771,4576.2,4576.1,0.4895]
[1758197049140,0.9657,4576.2,4576.1,0.4895]
[1758197049843,0.9657,4576.2,4576.1,0.6972]
[1758197052347,1.0771,4576.2,4576.1,0.2882]
[1758197052742,0.9657,4576.2,4576.1,0.4832]
[1758197052939,0.6091,4576.2,4576.1,0.6909]
[1758197053141,0.6046,4576.3,4576.1,5.3026]
[1758197053445,0.22,4576.8,4576.7,0.7103]
[1758197053647,0.3143,4576.9,4576.8,0.3076]
[1758197053847,0.7365,4576.9,4576.8,0.7103]
[1758197054547,0.9339,4576.9,4576.8,0.7103]
[1758197054748,0.7139,4576.9,4576.8,0.7103]
[1758197054945,0.9339,4576.9,4576.8,0.7103]
[1758197055542,0.7365,4576.9,4576.8,0.7103]
[1758197056243,0.7139,4576.9,4576.8,0.7103]
[1758197056444,0.9339,4576.9,4576.8,0.7103]
[1758197057948,0.7139,4576.9,4576.8,0.7103]
[1758197058250,0.9339,4576.9,4576.8,0.7103]
[1758197060649,0.9339,4576.9,4576.8,0.4027]
[1758197061545,0.9339,4576.9,4576.8,0.195]
[1758197062952,0.9339,4576.9,4576.8,0.5026]
[1758197063150,0.2022,4576.2,4576.1,0.7103]
[1758197063350,0.5165,4576.2,4576.1,0.7103]
[1758197064148,0.7139,4576.2,4576.1,0.7103]
[1758197068146,0.7139,4576.2,4576.1,0.195]
[1758197068950,0.7139,4576.2,4576.1,0.5026]
[1758197069146,0.7139,4576.2,4576.1,0.7103]
[1758197076861,3.8447,4576.5,4576.1,0.4027]
[1758197077062,0.6369,4576.5,4576.4,0.7058]
[1758197077263,3.5265,4577.1,4577.0,0.7058]
[1758197077461,3.2078,4577.1,4577.0,0.8224]
[1758197077660,3.7186,4577.1,4577.0,0.8224]
[1758197078059,3.2078,4577.1,4577.0,0.8224]
[1758197079159,1.1093,4577.3,4577.2,0.4048]
[1758197079468,0.5108,4577.3,4577.2,0.7058]
[1758197082665,0.3187,4577.3,4577.2,0.7058]
[1758197082860,4.5003,4577.6,4577.5,0.8224]
[1758197083068,3.2078,4577.6,4577.5,0.8224]
[1758197084066,0.3187,4577.8,4577.6,0.301]
[1758197084266,0.5108,4577.8,4577.7,0.7058]
[1758197086170,0.5755,4577.9,4577.8,0.301]
[1758197086468,0.5755,4577.9,4577.8,3.9136]
[1758197086872,0.8248,4578.0,4577.9,0.4954]
[1758197087067,0.5108,4578.5,4578.4,0.1944]
[1758197087276,0.7117,4578.5,4578.4,0.7058]
[1758197088375,0.5108,4578.5,4578.4,0.7058]
[1758197091671,0.7117,4578.5,4578.4,0.7058]
[1758197093584,0.83,4578.5,4578.4,0.7058]
[1758197094484,0.7117,4578.5,4578.4,0.7058]
[1758197094682,0.3187,4578.6,4578.5,0.301]
[1758197094878,0.3187,4578.6,4578.5,0.8224]
[1758197095182,0.5108,4578.6,4578.5,0.8224]
[1758197097583,0.5108,4578.6,4578.5,0.7058]
[1758197098786,0.3187,4578.6,4578.5,0.8232]
[1758197099385,0.5173,4578.6,4578.5,0.8232]
[1758197100292,0.5173,4578.6,4578.5,0.7058]
[1758197100791,0.7238,4578.6,4578.5,0.7058]
[1758197107100,1.8568,4578.7,4578.6,0.2976]
[1758197107404,2.2515,4578.7,4578.6,0.6896]
[1758197107808,2.2515,4578.7,4578.6,0.1942]
[1758197108007,2.2515,4578.7,4578.3,0.0218]
[1758197108207,2.2515,4578.7,4578.6,0.1942]
[1758197108706,2.2515,4578.7,4578.6,0.4918]
[1758197109102,2.2515,4578.7,4578.6,0.6896]
[1758197111805,1.95738547,4581.6,4578.6,0.6896]
[1758197111806,0.3027,4579.7,4579.1,0.2976]
[1758197112007,0.7527,4579.4,4579.3,0.6896]
[1758197112208,0.9512,4579.4,4579.3,0.6896]
[1758197112909,0.45,4579.4,4579.3,0.6896]
[1758197116408,0.9512,4579.4,4579.3,0.6896]
[1758197116705,1.1474,4579.4,4579.3,0.6896]
[1758197116901,1.1474,4579.4,4579.1,0.219]
[1758197117110,0.3027,4579.3,4579.1,0.219]
[1758197117310,0.6974,4579.2,4579.1,0.219]
[1758197117613,0.6974,4578.7,4578.6,0.1942]
[1758197117812,0.6974,4578.7,4578.6,0.4132]
[1758197118715,0.6974,4578.7,4578.6,0.7108]
[1758197119015,0.6974,4578.7,4578.6,0.1942]
[1758197119213,0.6974,4578.7,4578.6,0.4132]
[1758197119406,0.6974,4578.7,4578.6,0.7108]
[1758197119605,0.6974,4578.7,4578.6,0.4132]
[1758197119915,0.5012,4578.7,4578.6,0.9086]
[1758197120208,0.6974,4578.7,4578.6,0.9086]
[1758197120415,0.6974,4578.7,4578.6,0.219]
[1758197120717,0.1199,4578.5,4578.4,3.2078]
[1758197120908,0.8173,4578.5,4578.4,3.621]
[1758197121109,0.8173,4578.5,4578.4,3.9186]
[1758197122011,0.6974,4578.5,4578.4,4.1164]
[1758197122315,0.3184,4579.0,4578.9,0.392]
[1758197122617,0.5146,4579.0,4578.9,0.6896]
[1758197122921,0.8173,4579.0,4578.9,0.6896]
[1758197123106,0.8173,4579.0,4578.9,0.392]
[1758197123313,0.8173,4579.0,4578.6,0.2976]
[1758197123510,0.8173,4579.0,4578.7,0.219]
[1758197125107,0.8173,4579.0,4578.4,3.2078]
[1758197125108,0.5146,4579.0,4578.4,3.2078]
[1758197125312,0.6974,4578.6,4578.5,0.4132]
[1758197125616,0.6974,4578.6,4578.4,3.2078]
[1758197125813,0.8173,4578.5,4578.4,3.621]
[1758197126312,0.8173,4578.5,4578.4,3.9186]
[1758197126518,0.8173,4578.5,4578.4,4.1164]
[1758197128623,0.5012,4579.0,4578.9,0.6896]
[1758197132319,0.8414,4579.3,4579.2,0.392]
[1758197132518,0.45,4579.4,4579.3,0.6896]
[1758197133816,0.7799,4579.8,4579.7,0.392]
[1758197134019,0.5012,4580.4,4580.3,0.1942]
[1758197134321,0.6974,4580.4,4580.3,0.6896]
[1758197134526,0.5012,4580.4,4580.3,0.6896]
[1758197135117,0.5012,4580.4,4580.2,0.219]
[1758197135118,0.6974,4580.4,4580.2,0.219]
[1758197135324,0.4098,4579.6,4579.5,0.3883]
[1758197135525,0.711,4579.6,4579.5,4.1041]
[1758197136023,0.711,4579.6,4579.5,3.8151]
[1758197136227,0.711,4579.6,4579.5,0.4132]
[1758197137225,0.711,4579.6,4579.5,4.1041]
[1758197139123,0.5042,4579.6,4579.5,4.1041]
[1758197139429,0.6355,4579.9,4579.8,0.6781]
[1758197139621,0.711,4580.4,4580.3,0.6781]
[1758197139822,0.711,4580.4,4580.3,0.8981]
[1758197143128,0.2068,4580.4,4580.3,0.8981]
[1758197143525,3.2078,4580.5,4580.3,0.8981]
[1758197143726,3.4146,4580.5,4580.4,0.6781]
[1758197143930,3.7158,4580.5,4580.4,0.6781]
[1758197144135,3.9188,4580.5,4580.4,0.6781]
[1758197145925,0.711,4580.5,4580.4,0.6781]
[1758197149433,0.508,4580.5,4580.4,0.6781]
[1758197150228,0.3012,4580.6,4580.5,0.289]
[1758197150428,0.508,4580.6,4580.5,0.6781]
[1758197150733,0.711,4580.6,4580.5,0.6781]
[1758197152725,0.7187,4580.7,4580.6,0.289]
[1758197152929,0.3012,4580.9,4580.7,0.289]
[1758197153129,0.508,4580.9,4580.8,0.6781]
[1758197154333,0.733,4581.3,4581.2,0.6781]
[1758197155130,0.733,4581.3,4581.2,0.195]
[1758197155534,0.733,4581.3,4580.9,0.289]
[1758197155835,0.8345,4581.0,4580.9,0.484]
[1758197157036,0.711,4581.0,4580.9,0.6781]
[1758197157237,0.508,4581.0,4580.9,0.6781]
[1758197158436,0.7016,4581.0,4580.9,0.6781]
[1758197160232,0.508,4581.0,4580.9,0.6781]
[1758197161327,0.3144,4581.2,4580.9,0.3891]
[1758197161529,0.5432,4581.3,4581.2,0.388]
[1758197161730,0.5432,4581.3,4581.2,0.7027]
[1758197163036,0.7368,4581.3,4581.2,0.7027]
[1758197163238,0.7368,4581.3,4581.2,0.1928]
[1758197163432,0.1218,4581.0,4580.7,3.5225]
[1758197163637,0.7148,4580.8,4580.7,3.7153]
[1758197163940,0.7148,4580.8,4580.7,3.9105]
[1758197165436,0.5212,4580.8,4580.7,3.9105]
[1758197165935,0.6289,4580.9,4580.7,3.9105]
[1758197166139,0.6289,4580.9,4580.8,0.7168]
[1758197170040,0.9302,4580.9,4580.8,0.7168]
[1758197172948,0.6289,4580.9,4580.8,0.7168]
[1758197173750,0.9302,4580.9,4580.8,0.7168]
[1758197173951,0.6289,4580.9,4580.8,0.7168]
[1758197174248,0.9302,4580.9,4580.8,0.7168]
[1758197174447,1.1305,4580.9,4580.8,0.7168]
[1758197174649,0.6289,4580.9,4580.8,0.7168]
[1758197174849,0.6289,4580.9,4580.8,1.10958]
[1758197175252,0.9302,4580.9,4580.8,1.10958]
[1758197175654,0.6289,4580.9,4580.8,1.10958]
[1758197176953,0.6289,4580.9,4580.8,0.7168]
[1758197177154,0.9302,4580.9,4580.8,0.7168]
[1758197177354,1.1305,4580.9,4580.8,0.7168]
[1758197177556,1.3359,4580.9,4580.8,0.7168]
[1758197177958,0.82400289,4580.9,4580.8,0.7168]
[1758197178158,0.707,4580.9,4580.7,3.2078]
[1758197178455,0.707,4580.8,4580.7,3.7138]
[1758197178755,0.707,4580.8,4580.7,4.31739]
[1758197178955,0.3013,4580.8,4580.7,4.31739]
[1758197179156,0.4277,4581.3,4581.2,0.89874]
[1758197179357,0.4277,4581.3,4581.2,4.31734]
[1758197180255,0.2223,4581.3,4581.2,4.31734]
[1758197181456,0.022,4581.3,4581.2,4.31734]
[1758197186864,0.9135,4581.7,4581.6,1.10951]
[1758197187051,0.5016,4582.3,4582.2,0.2123]
[1758197187257,0.5016,4582.3,4582.2,0.7168]
[1758197188064,0.707,4582.3,4582.2,0.7168]
[1758197189469,0.4057,4582.1,4582.0,0.2937]
[1758197189767,0.707,4582.0,4581.9,0.2937]
[1758197189967,0.707,4582.0,4581.9,0.506]
[1758197196075,0.707,4582.0,4581.9,0.7168]
[1758197196574,0.707,4582.0,4581.9,0.7165]
[1758197196875,0.4057,4582.0,4581.9,0.7165]
[1758197197075,0.2003,4582.0,4581.9,0.7165]
[1758197197775,0.4993,4582.0,4581.9,0.7165]
[1758197197971,0.6936,4582.0,4581.9,0.7165]
[1758197198974,0.6936,4582.0,4581.9,0.5048]
[1758197199374,0.518,4582.0,4581.8,3.2078]
[1758197199570,0.6863,4581.9,4581.8,3.2078]
[1758197199773,0.6863,4581.9,4581.8,3.7349]
[1758197201972,0.6863,4581.9,4581.8,3.9466]
[1758197202177,0.3873,4581.9,4581.8,3.9466]
[1758197202566,0.193,4582.1,4582.0,0.5478]
[1758197202770,0.193,4582.1,4582.0,0.8638]
[1758197203377,0.492,4582.1,4582.0,0.8638]
[1758197204279,0.6863,4582.1,4582.0,0.8638]
[1758197204773,0.3873,4582.1,4582.0,0.8638]
[1758197205181,0.6863,4582.1,4582.0,0.8638]
[1758197205678,0.3873,4582.1,4582.0,0.8638]
[1758197206072,0.6863,4582.1,4582.0,0.8638]
[1758197206872,0.6863,4582.1,4582.0,0.7388]
[1758197207280,0.6863,4581.9,4581.8,0.0218]
[1758197207680,0.6863,4581.9,4581.5,0.316]
[1758197207875,0.193,4581.3,4581.2,0.7388]
[1758197209478,4.60558,4581.3,4581.1,3.2078]
[1758197209679,0.1943,4580.8,4580.7,3.5238]
[1758197209886,0.6863,4580.8,4580.7,3.5238]
[1758197210381,0.6863,4580.8,4580.7,3.7349]
[1758197212982,0.6863,4580.8,4580.6,0.316]
[1758197213488,0.6863,4580.8,4580.5,0.3378]
[1758197213682,0.6863,4580.8,4580.5,0.0218]
[1758197213884,0.6863,4580.8,4580.6,0.316]
[1758197214487,0.6863,4580.8,4580.5,0.0218]
[1758197214684,0.6863,4580.8,4580.5,0.3378]
[1758197216286,0.6863,4580.8,4580.6,0.2932]
[1758197217388,0.3141,4580.7,4580.5,0.0218]
[1758197217593,0.7229,4580.7,4580.6,0.4888]
[1758197217895,0.7229,4580.7,4580.6,0.6865]
[1758197220189,0.7229,4580.7,4580.6,0.4888]
[1758197221487,0.7229,4580.7,4580.6,0.6865]
[1758197222396,0.5144,4581.1,4581.0,0.8041]
[1758197222791,0.7229,4581.1,4581.0,0.8041]
[1758197222992,0.4088,4581.1,4581.0,0.8041]
[1758197223604,0.7229,4581.1,4581.0,0.8041]
[1758197223900,0.7229,4581.1,4581.0,0.6865]
[1758197224495,0.4088,4580.6,4580.5,0.2174]
[1758197224706,0.7229,4580.6,4580.5,0.5106]
[1758197224996,0.7229,4580.6,4580.5,0.8041]
[1758197225189,0.4088,4580.6,4580.5,0.8041]
[1758197225388,0.2003,4580.6,4580.5,0.8041]
[1758197225589,0.7021,4580.8,4580.5,0.5109]
[1758197225799,0.9055,4580.8,4580.7,0.7009]
[1758197226297,0.7021,4580.8,4580.7,0.7009]
[1758197226797,0.7021,4580.8,4580.7,3.9087]
[1758197227193,0.312,4581.8,4580.7,3.98888]
[1758197227394,0.7122,4581.8,4581.7,0.5047]
[1758197228193,0.7122,4581.8,4581.5,0.0218]
[1758197228389,0.7122,4581.8,4581.5,0.3344]
[1758197228593,0.7122,4581.7,4581.6,0.5047]
[1758197230804,0.7122,4581.7,4581.6,0.7009]
[1758197231204,0.7122,4581.7,4581.6,0.5047]
[1758197231700,0.7122,4581.7,4581.5,0.0218]
[1758197232100,0.7122,4581.7,4581.5,0.3344]
[1758197232804,0.7122,4581.7,4581.5,0.0218]
[1758197233003,0.7122,4581.7,4581.6,0.5047]
[1758197233199,0.7122,4581.7,4581.6,0.7009]
[1758197233603,0.7122,4581.7,4581.6,0.3126]
[1758197234004,0.7122,4581.7,4581.5,0.0218]
[1758197234305,0.93046,4581.6,4581.5,0.0218]
[1758197234699,0.1194,4581.5,4580.9,0.3126]
[1758197234907,0.7122,4581.0,4580.9,0.3126]
[1758197235099,0.7122,4581.0,4580.9,0.5047]
[1758197235294,0.7122,4581.0,4580.4,3.2078]
[1758197235295,0.7954,4581.0,4580.4,3.2078]
[1758197235500,0.7954,4581.0,4580.6,0.3126]
[1758197236302,0.7122,4580.9,4580.8,0.5047]
[1758197236505,0.7122,4580.9,4580.8,0.7009]
[1758197247204,0.4002,4580.9,4580.8,0.7009]
[1758197247405,0.2034,4580.9,4580.8,0.7009]
[1758197248208,0.7122,4580.9,4580.8,0.7009]
[1758197264020,0.7122,4580.9,4580.8,0.5047]
[1758197265325,0.7122,4580.9,4580.8,0.7078]
[1758197267622,1.26984284,4580.9,4580.6,0.0218]
[1758197267830,0.7059,4580.7,4580.6,0.0218]
[1758197268127,0.7059,4580.7,4580.2,0.3151]
[1758197268329,0.7059,4580.7,4580.1,0.3151]
[1758197268523,0.92422,4580.7,4580.1,0.3151]
[1758197268724,0.7059,4580.7,4580.1,0.3151]
[1758197271931,0.7059,4580.7,4580.2,0.0218]
[1758197272134,0.7059,4580.7,4580.3,0.3151]
[1758197276136,0.7059,4580.7,4580.2,0.0218]
[1758197276345,0.7059,4580.7,4580.3,0.3151]
[1758197277543,0.6991,4580.3,4580.2,0.0218]
[1758197277742,1.25609176,4580.3,4580.2,0.0218]
[1758197277945,0.4072,4579.7,4579.6,0.3011]
[1758197278139,0.4072,4579.7,4579.6,0.4968]
[1758197278140,0.6991,4579.7,4579.6,0.4968]
[1758197278344,0.4072,4579.7,4579.6,0.7004]
[1758197281745,0.2919,4580.0,4579.6,0.3993]
[1758197281945,0.6991,4580.3,4580.2,0.1957]
[1758197282145,0.6991,4580.3,4580.2,0.4968]
[1758197282345,0.6991,4580.3,4580.2,0.7004]
[1758197282542,0.4072,4580.3,4580.2,0.7004]
[1758197284047,0.6991,4580.3,4580.2,0.3011]
[1758197284641,0.6991,4580.3,4580.2,0.4968]
[1758197285150,0.6991,4580.3,4580.2,0.7004]
[1758197285844,0.4072,4580.3,4580.2,0.7004]
[1758197288155,0.2011,4580.3,4580.2,0.7004]
[1758197290156,0.2011,4580.3,4580.2,1.09323]
[1758197290753,0.2011,4580.3,4580.2,0.7004]
[1758197291756,0.7013,4580.3,4580.2,0.7004]
[1758197292554,0.7013,4580.3,4579.8,0.2907]
[1758197292754,0.7013,4580.3,4579.5,0.51848]
[1758197293057,0.288,4580.2,4579.6,0.2907]
[1758197293252,0.1941,4579.7,4579.6,0.7017]
[1758197293458,0.6943,4579.7,4579.6,0.7017]
[1758197294861,0.6943,4579.7,4579.4,0.3125]
[1758197295056,0.1176,4579.5,4579.4,0.0218]
[1758197295363,0.6943,4579.5,4579.4,0.2907]
[1758197295657,0.6943,4579.5,4579.4,0.4961]
[1758197296158,0.6943,4579.5,4579.4,0.2907]
[1758197296358,0.8119,4579.5,4579.4,0.2907]
[1758197296855,0.8119,4579.5,4579.1,0.2907]
[1758197297262,0.1941,4579.0,4578.9,0.411]
[1758197297761,0.288,4579.3,4579.2,0.411]
[1758197297762,0.4821,4579.3,4579.2,0.411]
[1758197297964,0.4821,4579.3,4579.2,0.7017]
[1758197298560,0.1941,4579.3,4579.2,0.7017]
[1758197299865,0.6943,4579.3,4579.2,0.7017]
[1758197303362,0.4063,4579.3,4579.2,0.7017]
[1758197303962,0.6943,4579.3,4579.2,0.7017]
[1758197306561,0.6943,4579.3,4579.2,0.4961]
[1758197306762,0.6943,4579.3,4579.0,0.3125]
[1758197307166,0.6943,4579.3,4579.1,0.2907]
[1758197309470,0.6943,4579.3,4579.0,0.0218]
[1758197309672,0.6943,4579.3,4579.1,0.2907]
[1758197310272,0.6943,4579.3,4579.0,0.0218]
[1758197310470,0.6943,4579.3,4579.1,0.2907]
[1758197311171,0.4063,4579.1,4579.0,0.0218]
[1758197311372,0.6943,4579.1,4579.0,0.0218]
[1758197311574,0.6943,4579.1,4578.6,0.2907]
[1758197311769,0.4063,4579.1,4579.0,0.2054]
[1758197311969,0.6943,4579.1,4579.0,0.4961]
[1758197314276,0.6943,4579.1,4579.0,0.7017]
[1758197314574,0.4063,4579.1,4579.0,0.8282]
[1758197314773,3.2078,4579.2,4579.0,0.8282]
[1758197314970,3.4019,4579.2,4579.1,0.4961]
[1758197315279,3.6987,4579.2,4579.1,0.7017]
[1758197315578,3.9094,4579.2,4579.1,0.7017]
[1758197317879,3.9094,4579.2,4579.1,0.4961]
[1758197319180,3.9094,4579.2,4579.1,0.6956]
[1758197320071,3.2078,4579.2,4579.1,0.6956]
[1758197320273,3.4155,4579.2,4579.1,0.6956]
[1758197320874,0.5045,4579.2,4579.1,0.6956]
[1758197321081,0.7152,4579.2,4579.1,0.4961]
[1758197321283,0.7152,4579.2,4579.1,0.6956]
[1758197325484,3.2078,4579.4,4579.1,0.4049]
[1758197325693,3.2078,4579.4,4579.3,0.7124]
[1758197326793,3.4155,4579.4,4579.3,0.7124]
[1758197326994,3.7123,4579.4,4579.3,0.7124]
[1758197327394,3.4155,4579.4,4579.3,0.7124]
[1758197327789,1.568,4579.6,4579.3,0.7124]
[1758197327985,1.568,4579.6,4579.5,0.1248]
[1758197328195,0.9204,4579.6,4579.5,0.8372]
[1758197328794,0.2077,4579.6,4579.5,0.8372]
[1758197332292,3.5046,4579.9,4579.6,0.3113]
[1758197332597,3.7123,4579.9,4579.8,0.7124]
[1758197333495,3.4155,4579.9,4579.8,0.7124]
[1758197333701,0.9731,4580.3,4580.2,0.7124]
[1758197336001,0.2077,4580.3,4580.2,0.7124]
[1758197336488,3.2078,4580.5,4580.2,0.7124]
[1758197336689,3.4013,4580.5,4580.4,0.4085]
[1758197336894,3.71,4580.5,4580.4,0.7256]
[1758197337195,3.9101,4580.5,4580.4,0.7256]
[1758197338491,3.9101,4580.5,4580.4,0.3171]
[1758197338692,4.0338,4580.5,4580.1,0.3171]
[1758197338898,4.0338,4580.5,4579.7,0.3171]
[1758197339098,0.3936,4579.8,4579.7,0.5266]
[1758197339403,0.7023,4579.8,4579.7,0.7256]
[1758197339594,0.3936,4579.8,4579.7,0.7256]
[1758197340196,0.9006,4580.1,4580.0,0.8435]
[1758197340197,0.5919,4580.1,4580.0,0.8435]
[1758197340900,0.5919,4580.1,4580.0,4.0513]
[1758197341199,0.6897,4580.4,4580.0,3.7342]
[1758197341396,0.6897,4580.4,4580.3,0.7256]
[1758197341596,0.8832,4580.4,4580.3,0.7256]
[1758197341898,0.1935,4580.4,4580.3,0.7256]
[1758197343496,0.5022,4580.4,4580.3,0.7256]
[1758197345500,0.7023,4580.4,4580.3,0.7256]
[1758197352802,0.7023,4580.4,4580.0,3.3257]
[1758197353009,0.2059,4579.8,4579.7,0.3062]
[1758197353203,0.4177,4579.8,4579.7,0.7209]
[1758197353706,3.2078,4580.4,4579.7,0.7209]
[1758197353902,0.3098,4580.3,4579.8,0.3062]
[1758197354099,0.7275,4580.3,4580.2,0.7209]
[1758197357311,0.4177,4580.3,4580.2,0.7209]
[1758197359011,0.7275,4580.3,4580.2,0.7209]
[1758197360312,0.4177,4580.3,4580.2,0.7209]
[1758197362013,1.6402,4580.5,4580.2,0.4147]
[1758197362214,0.3098,4580.4,4580.3,0.5104]
[1758197362415,0.7275,4580.4,4580.3,0.5104]
[1758197363011,0.7275,4580.4,4580.1,0.3062]
[1758197363209,0.7275,4580.4,4579.6,3.2078]
[1758197363410,0.2059,4579.8,4579.7,0.7209]
[1758197363607,0.7275,4579.8,4579.7,0.7209]
[1758197365417,0.4177,4579.8,4579.7,0.7209]
[1758197366313,0.7275,4579.8,4579.7,0.7209]
[1758197367411,0.7275,4579.8,4579.6,0.3062]
[1758197368618,0.7275,4579.8,4579.7,0.5104]
[1758197369420,0.7275,4579.8,4579.5,0.0218]
[1758197369620,0.7275,4579.8,4579.5,0.328]
[1758197369819,3.3264,4580.0,4579.5,0.0218]
[1758197369820,0.4177,4579.6,4579.5,0.0218]
[1758197370118,1.28438124,4579.6,4578.9,0.3062]
[1758197370324,0.7275,4579.0,4578.9,0.5104]
[1758197370716,0.7275,4579.0,4578.9,0.7209]
[1758197381720,0.7275,4579.0,4578.9,0.5104]
[1758197385033,0.8211,4579.0,4578.9,0.3062]
[1758197387630,0.7275,4579.0,4578.9,0.5]
[1758197390934,0.7275,4579.0,4578.9,0.3062]
[1758197392133,0.7275,4579.0,4578.9,0.5]
[1758197396743,0.8211,4579.0,4578.7,0.336]
[1758197396947,0.8211,4579.0,4578.7,0.0218]
[1758197397344,0.8211,4579.0,4578.8,0.3067]
[1758197397740,0.8211,4579.0,4578.7,0.0218]
[1758197397946,0.8211,4579.0,4578.8,0.3067]
[1758197398144,0.8211,4579.0,4578.7,0.0218]
[1758197398343,3.6169,4578.8,4578.7,0.0218]
[1758197398540,4.4938051,4578.8,4578.7,0.0218]
[1758197398743,0.4091,4578.1,4578.0,0.5031]
[1758197398939,0.7282,4578.1,4578.0,0.8255]
[1758197400246,0.7282,4578.1,4578.0,0.3067]
[1758197400651,0.7282,4578.1,4578.0,0.5031]
[1758197401445,0.7282,4577.8,4577.7,0.5031]
[1758197401648,0.7282,4577.8,4577.1,0.3067]
[1758197401852,0.77605328,4577.7,4577.5,0.0218]
[1758197402157,0.77605328,4577.7,4576.6,0.2591]
[1758197402158,4.49359327,4577.6,4576.7,0.3067]
[1758197402350,0.7282,4576.8,4576.7,0.5031]
[1758197403354,0.7282,4576.8,4576.7,0.7023]
[1758197403944,1.5062,4576.8,4576.7,0.5031]
[1758197404454,1.5062,4576.8,4576.7,0.3067]
[1758197404643,1.1871,4576.8,4576.6,0.5658]
[1758197404850,0.7282,4576.7,4576.6,0.5658]
[1758197406054,0.7282,4576.7,4576.6,0.7622]
[1758197406453,0.2114,4576.7,4576.6,0.956]
[1758197408758,0.503,4576.7,4576.6,0.956]
[1758197410155,0.2114,4576.7,4576.6,0.956]
[1758197410656,0.503,4576.7,4576.6,0.956]
[1758197411155,0.7054,4576.7,4576.6,0.956]
[1758197413256,0.7054,4576.7,4576.6,0.7622]
[1758197415758,0.7054,4576.7,4576.6,0.2591]
[1758197415962,0.9239,4576.7,4576.3,0.02185195]
[1758197416163,3.6165,4576.4,4576.3,0.02185195]
[1758197416360,3.9081,4576.4,4576.3,0.02185195]
[1758197416759,0.4087,4575.7,4575.6,0.505]